fUST/lending_fUST_20240108
["ID","MTS","AMOUNT","RATE_DAILY","PERIOD"]
[310715858,1704654642398,-500.0,0.00035616,2]
[310715859,1704654642407,-521.34412906,0.00035616,2]
[310715860,1704654642416,-500.0,0.00035616,2]
[310715861,1704654642426,-500.0,0.00035616,2]
[310715862,1704654642435,-577.4051914,0.00035616,2]
[310715863,1704654642445,-500.0,0.00035616,2]
[310715864,1704654642454,-500.0,0.00035616,2]
[310715865,1704654642463,-500.0,0.00035616,2]
[310715866,1704654642472,-500.0,0.00035616,2]
[310715867,1704654642482,-500.0,0.00035616,2]
[310715868,1704654642491,-500.0,0.00035616,2]
[310715869,1704654642500,-500.0,0.00035616,2]
[310715870,1704654642509,-500.0,0.00035616,2]
[310715871,1704654642518,-500.0,0.00035616,2]
[310715872,1704654642527,-500.0,0.00035616,2]
[310715873,1704654642536,-500.0,0.00035616,2]
[310715874,1704654642545,-500.0,0.00035616,2]
[310715875,1704654642555,-500.0,0.00035616,2]
[310715876,1704654642564,-500.0,0.00035616,2]
[310715877,1704654642573,-500.0,0.00035616,2]
[310715878,1704654642582,-500.0,0.00035616,2]
[310715879,1704654642593,-500.0,0.00035616,2]
[310715880,1704654642602,-500.0,0.00035616,2]
[310715881,1704654642612,-500.0,0.00035616,2]
[310715882,1704654642621,-500.0,0.00035616,2]
[310715883,1704654642630,-500.0,0.00035616,2]
[310715884,1704654642640,-500.0,0.00035616,2]
[310715885,1704654642649,-500.0,0.00035616,2]
[310715886,1704654642658,-500.0,0.00035616,2]
[310715887,1704654642667,-516.0294484,0.00035616,2]
[310715888,1704654642676,-566.68291451,0.00035616,2]
[310715889,1704654642685,-500.0,0.00035616,2]
[310715890,1704654642694,-1464.19,0.00035616,2]
[310715891,1704654642704,-500.0,0.00035616,2]
[310715892,1704654642713,-500.0,0.00035616,2]
[310715893,1704654642722,-500.0,0.00035616,2]
[310715894,1704654642731,-500.0,0.00035616,2]
[310715895,1704654642740,-602.35,0.00035616,2]
[310715896,1704654642749,-500.0,0.00035616,2]
[310715897,1704654642758,-500.0,0.00035616,2]
[310715898,1704654642769,-500.0,0.00035616,2]
[310715899,1704654642779,-500.0,0.00035616,2]
[310715900,1704654642788,-500.0,0.00035616,2]
[310715901,1704654642798,-503.65598886,0.00035616,2]
[310715902,1704654642806,-500.0,0.00035616,2]
[310715903,1704654642815,-500.0,0.00035616,2]
[310715904,1704654642824,-500.0,0.00035616,2]
[310715905,1704654642834,-500.0,0.00035616,2]
[310715906,1704654642844,-500.0,0.00035616,2]
[310715907,1704654642853,-500.0,0.00035616,2]
[310715908,1704654642863,-500.0,0.00035616,2]
[310715909,1704654642872,-500.0,0.00035616,2]
[310715910,1704654642881,-269.80959954,0.00035616,2]
[310715911,1704654642991,-255.01040046,0.00035616,2]
[310715912,1704654643001,-500.0,0.00035616,2]
[310715913,1704654643009,-500.0,0.00035616,2]
[310715914,1704654643018,-500.0,0.00035616,2]
[310715915,1704654643028,-500.0,0.00035616,2]
[310715916,1704654643037,-500.0,0.00035616,2]
[310715917,1704654643046,-1000.0,0.00035616,2]
[310715918,1704654643055,-500.0,0.00035616,2]
[310715919,1704654643064,-1008.33,0.00035616,2]
[310715920,1704654643073,-500.0,0.00035616,2]
[310715921,1704654643082,-500.0,0.00035616,2]
[310715922,1704654643091,-500.0,0.00035616,2]
[310715923,1704654643100,-500.0,0.00035616,2]
[310715924,1704654643109,-1356.79,0.00035616,2]
[310715925,1704654643118,-500.0,0.00035616,2]
[310715926,1704654643127,-500.0,0.00035616,2]
[310715927,1704654643136,-639.26,0.00035616,2]
[310715928,1704654643145,-500.0,0.00035616,2]
[310715929,1704654643154,-228.57916484,0.00035616,2]
[310715930,1704654643163,-500.0,0.00035616,2]
[310715931,1704654643172,-500.0,0.00035616,2]
[310715932,1704654643181,-500.0,0.00035616,2]
[310715933,1704654643190,-500.0,0.00035616,2]
[310715934,1704654643199,-500.0,0.00035616,2]
[310715935,1704654643208,-703.68,0.00035616,2]
[310715936,1704654643217,-500.0,0.00035616,2]
[310715938,1704654643226,-500.0,0.00035616,2]
[310715940,1704654643235,-512.92012071,0.00035616,2]
[310715941,1704654643244,-246.89509382,0.00035616,2]
[310715943,1704654643254,-500.0,0.00035616,2]
[310715946,1704654643264,-2441.45,0.00035616,2]
[310715947,1704654643274,-500.0,0.00035616,2]
[310715949,1704654643284,-1301.17,0.00035616,2]
[310715951,1704654643293,-500.0,0.00035616,2]
[310715955,1704654643302,-500.0,0.00035616,2]
[310715959,1704654643311,-200.52119259,0.00035616,2]
[310715962,1704654643320,-503.58946755,0.00035616,2]
[310715965,1704654643329,-500.0,0.00035616,2]
[310715968,1704654643338,-500.0,0.00035616,2]
[310715971,1704654643348,-500.0,0.00035616,2]
[310715974,1704654643357,-500.0,0.00035616,2]
[310715977,1704654643366,-500.0,0.00035616,2]
[310715980,1704654643375,-500.0,0.00035616,2]
[310715983,1704654643384,-500.0,0.00035616,2]
[310715986,1704654643393,-500.0,0.00035616,2]
[310715989,1704654643403,-500.0,0.00035616,2]
[310715991,1704654643412,-500.0,0.00035616,2]
[310715994,1704654643421,-500.0,0.00035616,2]
[310715997,1704654643430,-500.0,0.00035616,2]
[310715998,1704654643440,-533.63543785,0.00035616,2]
[310716000,1704654643449,-500.0,0.00035616,2]
[310716002,1704654643458,-500.0,0.00035616,2]
[310716003,1704654643467,-510.06108715,0.00035616,2]
[310716005,1704654643476,-500.0,0.00035616,2]
[310716007,1704654643486,-500.0,0.00035616,2]
[310716008,1704654643495,-500.0,0.00035616,2]
[310716010,1704654643504,-508.71397967,0.00035616,2]
[310716012,1704654643513,-500.0,0.00035616,2]
[310716013,1704654643522,-500.0,0.00035616,2]
[310716015,1704654643531,-504.54323411,0.00035616,2]
[310716017,1704654643541,-500.0,0.00035616,2]
[310716019,1704654643550,-500.0,0.00035616,2]
[310716020,1704654643559,-600.86819837,0.00035616,2]
[310716021,1704654643569,-500.0,0.00035616,2]
[310716023,1704654643578,-866.46,0.00035616,2]
[310716025,1704654643588,-500.0,0.00035616,2]
[310716026,1704654643598,-500.0,0.00035616,2]
[310716028,1704654643607,-500.0,0.00035616,2]
[310716030,1704654643617,-500.0,0.00035616,2]
[310716032,1704654643627,-469.14788274,0.00035616,2]
[310716033,1704654643636,-500.0,0.00035616,2]
[310716034,1704654643646,-500.0,0.00035616,2]
[310716035,1704654643655,-500.0,0.00035616,2]
[310716036,1704654643664,-500.0,0.00035616,2]
[310716037,1704654643673,-500.0,0.00035616,2]
[310716038,1704654643682,-500.0,0.00035616,2]
[310716039,1704654643691,-500.0,0.00035616,2]
[310716040,1704654643700,-500.0,0.00035616,2]
[310716041,1704654643709,-500.0,0.00035616,2]
[310716042,1704654643718,-500.0,0.00035616,2]
[310716043,1704654643727,-425.1429202,0.00035616,2]
[310716044,1704654643741,-1517.4170798,0.00035616,2]
[310716045,1704654643750,-500.0,0.00035616,2]
[310716046,1704654643759,-500.0,0.00035616,2]
[310716047,1704654643768,-500.0,0.00035616,2]
[310716048,1704654643780,-500.0,0.00035616,2]
[310716049,1704654643790,-500.0,0.00035616,2]
[310716050,1704654643799,-500.0,0.00035616,2]
[310716051,1704654643808,-501.01268029,0.00035616,2]
[310716052,1704654643818,-575.62651939,0.00035616,2]
[310716053,1704654643827,-502.48157989,0.00035616,2]
[310716054,1704654643838,-500.0,0.00035616,2]
[310716055,1704654643847,-500.0,0.00035616,2]
[310716056,1704654643856,-500.0,0.00035616,2]
[310716057,1704654643866,-500.0,0.00035616,2]
[310716058,1704654643875,-523.27587313,0.00035616,2]
[310716059,1704654643884,-500.0,0.00035616,2]
[310716060,1704654643894,-500.0,0.00035616,2]
[310716061,1704654643903,-500.0,0.00035616,2]
[310716062,1704654643912,-500.0,0.00035616,2]
[310716063,1704654643921,-964.84,0.00035616,2]
[310716064,1704654643930,-500.0,0.00035616,2]
[310716065,1704654643939,-500.0,0.00035616,2]
[310716066,1704654643949,-500.0,0.00035616,2]
[310716067,1704654643958,-2280.42,0.00035616,2]
[310716068,1704654643967,-413.97737795,0.00035616,2]
[310716069,1704654643976,-500.0,0.00035616,2]
[310716070,1704654643985,-500.0,0.00035616,2]
[310716071,1704654643994,-500.0,0.00035616,2]
[310716072,1704654644003,-500.0,0.00035616,2]
[310716073,1704654644012,-2476.4,0.00035616,2]
[310716074,1704654644021,-1511.54,0.00035616,2]
[310716075,1704654644030,-500.0,0.00035616,2]
[310716076,1704654644039,-500.0,0.00035616,2]
[310716077,1704654644048,-500.0,0.00035616,2]
[310716078,1704654644057,-500.0,0.00035616,2]
[310716079,1704654644065,-500.0,0.00035616,2]
[310716080,1704654644075,-500.0,0.00035616,2]
[310716081,1704654644083,-500.0,0.00035616,2]
[310716082,1704654644094,-500.0,0.00035616,2]
[310716083,1704654644103,-500.0,0.00035616,2]
[310716084,1704654644112,-500.0,0.00035616,2]
[310716085,1704654644120,-500.0,0.00035616,2]
[310716086,1704654644129,-388.19483132,0.00035616,2]
[310716168,1704654658218,-5000.0,0.00018212,2]
[310716169,1704654658269,-2654.68995153,0.00018212,2]
[310716170,1704654658297,-2345.31004847,0.00018212,2]
[310716171,1704654658456,-837.97654408,0.00018212,2]
[310716172,1704654669891,200.0,0.00021262,7]
[310716176,1704654755866,-4900.0,0.00018305,2]
[310716177,1704654755960,-100.0,0.00018305,2]
[310716178,1704654822440,-154.84515485,0.00018304,2]
[310716179,1704654822468,-148.65134866,0.00018305,2]
[310716180,1704654822633,-6.19380619,0.00018305,2]
[310716183,1704654836982,-250.10444154,0.00018305,2]
[310716184,1704654837183,-5.10417228,0.00018305,2]
[310716187,1704654885014,-154.84515485,0.00018304,3]
[310716188,1704654885042,-3138.62405334,0.00018309,2]
[310716189,1704654885260,-222.05881216,0.00018309,2]
[310716191,1704654960984,-154.84515485,0.00017393,2]
[310716192,1704654961011,-148.65134866,0.00017393,2]
[310716193,1704654961244,-6.19380619,0.00017393,2]
[310716194,1704654961273,-174.76839857,0.00017393,2]
[310716195,1704654985254,-154.84515485,0.00017394,3]
[310716196,1704654985282,-4845.15484515,0.00018284,2]
[310716197,1704654985459,-5000.0,0.00018284,2]
[310716198,1704654985581,-5000.0,0.00018284,2]
[310716199,1704654985749,-5000.0,0.00018284,2]
[310716200,1704654985865,-5000.0,0.00018284,2]
[310716201,1704654985973,-54.84515485,0.00018284,2]
[310716204,1704655005980,-191.22103877,0.00017393,2]
[310716205,1704655006003,-70.77896123,0.00017394,3]
[310716209,1704655072669,-154.84515485,0.00017392,3]
[310716210,1704655072692,-91.15484515,0.00017393,2]
[310716211,1704655138202,-63.6903097,0.00017393,2]
[310716212,1704655138224,-114.3096903,0.00017394,3]
[310716252,1704655394745,-154.84515485,0.00017391,2]
[310716253,1704655394776,-106.15484515,0.00017392,3]
[310716338,1704655833540,-48.6903097,0.00017392,3]
[310716340,1704655833550,-642.55748837,0.00019177,2]
[310716342,1704655833559,-28.77927283,0.00019178,2]
[310716347,1704655833599,-162.76724817,0.00019178,2]
[310716349,1704655833608,-155.05907829,0.00019233,2]
[310716351,1704655833617,-321.94449774,0.00019326,2]
[310716353,1704655833626,-309.58206499,0.00019326,2]
[310716355,1704655833635,-156.59772865,0.00019326,2]
[310716357,1704655833645,-300.60049211,0.00019326,2]
[310716359,1704655833654,-261.55260087,0.00019326,2]
[310716361,1704655833663,-243.50053241,0.00019326,2]
[310716363,1704655833672,-212.61910187,0.00019326,2]
[310716365,1704655833682,-245.65133887,0.00019326,2]
[310716367,1704655833692,-863.29421261,0.00019326,2]
[310716369,1704655833701,-178.37571644,0.00019326,2]
[310716371,1704655833710,-214.70592479,0.00019326,2]
[310716373,1704655833720,-2099.1643818,0.00019326,2]
[310716375,1704655833730,-469.37613453,0.00019326,2]
[310716377,1704655833739,-157.11908766,0.00019326,2]
[310716379,1704655833748,-260.72265961,0.00019326,2]
[310716381,1704655833758,-10640.59182837,0.00019326,2]
[310716383,1704655833767,-155.33770632,0.00019326,2]
[310716385,1704655833776,-301.99010241,0.00019326,2]
[310716387,1704655833785,-1063.79895805,0.00019326,2]
[310716389,1704655833795,-485.13096954,0.00019326,2]
[310716391,1704655833804,-164.32046316,0.00019327,2]
[310716393,1704655833814,-1186.25070215,0.00019327,2]
[310716394,1704655833823,-198.63264518,0.00019328,2]
[310716396,1704655833833,-20841.25599026,0.00019328,2]
[310716397,1704655833842,-253.7100353,0.00019328,2]
[310716398,1704655833851,-264.53886499,0.00019329,2]
[310716399,1704655833861,-1571.77414009,0.00019329,2]
[310716400,1704655833870,-1745.04400668,0.00019329,2]
[310716401,1704655833879,-7853.18847264,0.00019329,2]
[310716402,1704655833888,-36816.09575033,0.0001933,2]
[310716403,1704655833900,-37268.60639736,0.0001933,2]
[310716404,1704655833910,-10540.13758963,0.00019331,2]
[310716405,1704655833919,-191.546521,0.00020521,2]
[310716406,1704655833928,-1820.7363443,0.00021262,2]
[310716407,1704655833937,-422.96906176,0.00023288,2]
[310716408,1704655833945,-8300.52806778,0.00026928,2]
[310716409,1704655833954,-5752.53670449,0.00026941,2]
[310716410,1704655833962,-1574.06464313,0.000295,30]
[310716411,1704655833972,-201.32662799,0.00029648,2]
[310716412,1704655833981,-362.69271405,0.0003,4]
[310716413,1704655833990,-213.0,0.0003,2]
[310716414,1704655833999,-174.297488,0.00030081,2]
[310716415,1704655834008,-622.48454858,0.00031999,2]
[310716416,1704655834017,-213.0,0.00033,2]
[310716417,1704655834026,-213.0,0.00033835,2]
[310716418,1704655834035,-9846.47682673,0.00033835,5]
[310716419,1704655834044,-1000.0,0.00034,7]
[310716420,1704655834053,-11922.73364972,0.000345,5]
[310716421,1704655834062,-582.35866665,0.00034521,2]
[310716603,1704655841103,-1129.52,0.0001932,3]
[310716604,1704655841113,-3417.64133335,0.00034521,2]
[310716605,1704655841123,-280.69699014,0.00035,4]
[310716691,1704656828101,-2871.42021001,0.00026142,2]
[310716692,1704656828122,-154.82968734,0.00026143,4]
[310716693,1704656828142,-2228.27065958,0.00026143,2]
[310716771,1704657032116,-154.82968734,0.00026142,4]
[310716773,1704657032126,-154.82968734,0.00026143,4]
[310716775,1704657032136,-2078.1549427,0.00026143,2]
[310716777,1704657032145,-1820.7363443,0.00026143,2]
[310716779,1704657032155,-212.94933832,0.00026143,2]
[310716880,1704657039325,-168.56942714,0.00026043,2]
[310716881,1704657039335,-550.01621476,0.00026143,2]
[310716882,1704657039344,-268.84623799,0.00026249,2]
[310716883,1704657039353,-2978.28980163,0.00026941,2]
[310716884,1704657039363,-256.715004,0.00029251,2]
[310716885,1704657039372,-344.31973606,0.00029487,2]
[310716886,1704657039382,-150.0,0.00030479,2]
[310716888,1704657039391,-201.083,0.00030479,2]
[310716890,1704657039400,-1641.487898,0.00031474,2]
[310716892,1704657039409,-1044.29621598,0.00031779,2]
[310716893,1704657039418,-174.297488,0.00031779,2]
[310716894,1704657039427,-8865.04230028,0.00031794,2]
[310716896,1704657039436,-322.52163965,0.00031794,4]
[310716897,1704657039445,-154.87609912,0.00031794,2]
[310716898,1704657039455,-213.0,0.00031795,2]
[310716899,1704657039464,-2666.63893739,0.00031795,4]
[310716900,1704657039476,-202.24024676,0.00031795,4]
[310716901,1704657039486,-518.76553174,0.00031796,2]
[310716922,1704657043301,-867.447744,0.00031796,2]
[310716924,1704657044202,-7896.13571583,0.00031796,2]
[310716925,1704657044214,-5339.39108402,0.00031796,2]
[310716926,1704657044225,-1243.64942372,0.00031796,2]
[310716929,1704657046211,-154.82968734,0.00026143,4]
[310716930,1704657046221,-9034.61050069,0.00031796,2]
[310716931,1704657046231,-14375.67672839,0.00031846,2]
[310716932,1704657046241,-184.92688175,0.00031846,2]
[310716933,1704657046250,-174.034707,0.00033591,2]
[310716934,1704657046259,-1000.0,0.00034,7]
[310716935,1704657046269,-153.0,0.00034052,2]
[310716936,1704657046278,-1340.9739039,0.00034298,4]
[310716937,1704657046287,-153.0,0.00034452,2]
[310716938,1704657046297,-153.0,0.00034452,2]
[310716939,1704657046306,-4000.0,0.00034521,2]
[310716940,1704657046315,-153.0,0.00034521,2]
[310716941,1704657046324,-153.0,0.00034521,2]
[310716942,1704657046333,-153.0,0.00034521,2]
[310716943,1704657046342,-153.0,0.00034521,2]
[310716944,1704657046351,-153.0,0.00034521,2]
[310716945,1704657046360,-153.0,0.00034521,2]
[310716946,1704657046370,-153.0,0.00034521,2]
[310716947,1704657046379,-153.0,0.00034521,2]
[310716948,1704657046388,-153.0,0.00034521,2]
[310716949,1704657046397,-153.0,0.00034521,2]
[310716950,1704657046406,-153.0,0.00034521,2]
[310716951,1704657046416,-153.0,0.00034521,2]
[310716952,1704657046425,-213.0,0.00034795,2]
[310716953,1704657046434,-941.26,0.0003499,3]
[310716954,1704657046444,-676.23478638,0.00034999,4]
[310716955,1704657046453,-2371.14384871,0.00035,4]
[310716956,1704657046462,-379.31053909,0.00035,4]
[310716957,1704657046471,-409.53045102,0.00035,2]
[310716958,1704657046481,-282.4048077,0.00035,3]
[310716959,1704657046491,-4553.52437062,0.00035,4]
[310716960,1704657046500,-449.1050002,0.00035,4]
[310716961,1704657046509,-305.00700135,0.00035,4]
[310716962,1704657046519,-3826.3698118,0.00035,4]
[310716963,1704657046528,-1456.24400405,0.00035,14]
[310716964,1704657046537,-7799.92069256,0.00035,4]
[310716965,1704657046547,-5061.18921309,0.00035,2]
[310716966,1704657046556,-154.82968734,0.00035,4]
[310716967,1704657046565,-844.19356294,0.00035,2]
[310716968,1704657046575,-4351.04636824,0.00035,4]
[310716969,1704657046584,-155.0,0.00035,4]
[310716970,1704657046593,-168.75525249,0.00035125,14]
[310716971,1704657046602,-1000.0,0.00035248,2]
[310716972,1704657046611,-200.0,0.000354,4]
[310716973,1704657046620,-922.0,0.00035452,2]
[310716974,1704657046630,-393.41528718,0.00035495,2]
[310716975,1704657046639,-422.96906176,0.00035495,2]
[310716976,1704657046649,-764.98384516,0.00035496,4]
[310716977,1704657046658,-2509.67018179,0.00035496,4]
[310716978,1704657046668,-1585.54000309,0.00035496,4]
[310716979,1704657046677,-249.4328017,0.00035497,4]
[310716980,1704657048233,253.82104739,0.00026143,7]
[310716985,1704657102226,17413.43089093,0.00026143,7]
[310716990,1704657247885,5901.02846315,0.000125,2]
[310716997,1704657717029,191.22103877,0.000125,2]
[310716998,1704657786020,256.57685411,0.000125,2]
[310717000,1704657845444,202.20123854,0.000125,2]
[310717008,1704657919525,165.31212836,0.000125,2]
[310717012,1704657973654,8945.66008797,0.000125,2]
[310717013,1704657973703,8332.44611273,0.000125,2]
[310717015,1704658031653,236.19676424,0.000125,2]
[310717025,1704658171687,155.16578643,0.000125,2]
[310717026,1704658178714,155.3334397,0.0001125,2]
[310717057,1704658232312,-154.82968734,0.00019994,2]
[310717058,1704658232321,-154.82968734,0.00019995,2]
[310717059,1704658232330,-3468.85028262,0.00019996,2]
[310717079,1704658238439,-946.23744718,0.00019993,2]
[310717080,1704658238449,-154.82968734,0.00019993,3]
[310717081,1704658238458,-6.93902199,0.00019996,2]
[310717082,1704658238468,-200.0,0.0002,2]
[310717083,1704658238477,-232.505198,0.00023886,2]
[310717084,1704658238486,-98.60103679,0.00024747,5]
[310717085,1704658238497,-662.15484725,0.00024747,5]
[310717086,1704658238505,-1764.954426,0.00025173,2]
[310717087,1704658238515,-495.31512757,0.00026121,5]
[310717092,1704658238629,-1820.7363443,0.00026143,2]
[310717095,1704658238641,-964.8749466,0.00026143,2]
[310717097,1704658238652,-130.54026904,0.00026143,2]
[310717099,1704658238661,-762.96555308,0.00026143,2]
[310717102,1704658238671,-154.82968734,0.00026143,4]
[310717104,1704658238680,-200.47959856,0.00026143,2]
[310717106,1704658238689,-3005.39361446,0.00026143,2]
[310717108,1704658238698,-1725.76101135,0.00026941,2]
[310717110,1704658238707,-623.14537573,0.00026941,2]
[310717112,1704658238716,-3389.1231387,0.00027,2]
[310717114,1704658238726,-154.86062544,0.00027496,2]
[310717116,1704658238735,-174.76839857,0.00027496,2]
[310717118,1704658238744,-469.37613453,0.00027496,2]
[310717120,1704658238753,-155.22214716,0.00027497,2]
[310717122,1704658238762,-2033.44799394,0.00027497,2]
[310717124,1704658238772,-24900.0,0.00027498,2]
[310717126,1704658238781,-11109.1894143,0.00027513,2]
[310717128,1704658238790,-353.3116885,0.00027525,2]
[310717130,1704658238799,-304.80766426,0.00028,2]
[310717132,1704658238808,-334.26243587,0.00028,2]
[310717134,1704658238817,-282.4048077,0.0003,3]
[310717136,1704658238827,-213.0,0.0003,2]
[310717138,1704658238836,-1000.0,0.00034,7]
[310717140,1704658238845,-4000.0,0.00034521,2]
[310717142,1704658238854,-4298.30612317,0.00034901,3]
[310717144,1704658238863,-784.39,0.0003499,3]
[310717145,1704658238873,-422.96906176,0.00034999,2]
[310717148,1704658238882,-2651.84083885,0.00035,4]
[310717150,1704658238891,-4351.04636824,0.00035,4]
[310717152,1704658238900,-3542.83244916,0.00035,2]
[310717153,1704658238909,-7799.92069256,0.00035,4]
[310717154,1704658238918,-9973.97789574,0.00035,3]
[310717205,1704658241475,-1019.46116191,0.00019999,2]
[310717206,1704658241484,-4754.45535499,0.00035,3]
[310717207,1704658241495,-5271.56674927,0.00035,3]
[310717208,1704658241505,-154.82968734,0.00035,4]
[310717209,1704658241516,-590.93549406,0.00035,2]
[310717210,1704658241526,-4000.0,0.00035,2]
[310717211,1704658241538,-4000.0,0.00035,2]
[310717212,1704658241547,-2885.02360243,0.00035,2]
[310717213,1704658241560,-1114.97639757,0.00035,2]
[310717214,1704658241570,-4000.0,0.00035,2]
[310717215,1704658241579,-1576.20853557,0.00035139,4]
[310717216,1704658241587,-235.76417524,0.00035139,2]
[310717217,1704658241597,-293.96606539,0.00035139,4]
[310717218,1704658241606,-1211.64702523,0.0003514,4]
[310717219,1704658241616,-3732.74533379,0.0003514,4]
[310717220,1704658241625,-198.63264518,0.0003514,4]
[310717221,1704658241634,-178.33919213,0.0003514,4]
[310717222,1704658241643,-5093.64043761,0.00035141,4]
[310717223,1704658241654,-21296.00172954,0.00035141,4]
[310717224,1704658241663,-310.0,0.00035164,2]
[310717225,1704658241672,-200.0,0.000352,4]
[310717226,1704658241682,-186.74393142,0.00035426,2]
[310717227,1704658241691,-830.0,0.00035452,2]
[310717228,1704658241700,-156.32439624,0.00035496,14]
[310717229,1704658241709,-2632.81131618,0.00035496,4]
[310717230,1704658241717,-1145.69834112,0.00035496,4]
[310717231,1704658241727,-520.42865446,0.00035496,4]
[310717232,1704658241737,-2509.67018179,0.00035496,4]
[310717233,1704658241747,-2709.39921815,0.00035496,120]
[310717234,1704658241757,-176.37155355,0.00035496,4]
[310717235,1704658241766,-187.16805438,0.00035496,4]
[310717236,1704658241775,-249.95281177,0.00035496,4]
[310717237,1704658241784,-553.52733063,0.00035496,4]
[310717238,1704658241792,-322.09689119,0.00035496,4]
[310717239,1704658241802,-1238.62873412,0.00035496,4]
[310717240,1704658241811,-230.24274082,0.00035496,4]
[310717241,1704658241820,-164.74006432,0.00035496,4]
[310717242,1704658241829,-190.80461164,0.00035496,4]
[310717243,1704658241838,-559.92585863,0.00035496,4]
[310717244,1704658241847,-139.49222153,0.00035496,4]
[310717303,1704658273907,197.96269252,0.00015,2]
[310717333,1704659094338,-955.53983254,0.00018216,2]
[310717334,1704659094596,-19.50081291,0.00018216,2]
[310717337,1704659188198,-335.37735066,0.00018216,2]
[310717338,1704659188309,-6.84443573,0.00018216,2]
[310717339,1704659202151,-337.01810594,0.00018216,2]
[310717340,1704659202328,-6.87792053,0.00018216,2]
[310717349,1704659360097,-154.82968734,0.00018987,3]
[310717350,1704659360119,-154.82968734,0.00018988,2]
[310717351,1704659360144,-3388.67894881,0.00018989,2]
[310717353,1704659375438,154.82968734,0.00017087,3]
[310717356,1704659391440,154.82968734,0.00017087,3]
[310717359,1704659409445,154.82968734,0.00017087,3]
[310717360,1704659427444,154.82968734,0.00017087,3]
[310717406,1704659432528,-293.18944582,0.00018986,2]
[310717407,1704659432541,-154.82968734,0.00018987,2]
[310717408,1704659432554,-19649.20370013,0.00018988,2]
[310717409,1704659432569,-21511.32105119,0.00018989,2]
[310717410,1704659432582,-1019.46116191,0.00019245,2]
[310717411,1704659432594,-232.505198,0.00019253,2]
[310717412,1704659432609,-268.84623799,0.0002,2]
[310717413,1704659432620,-2992.53948309,0.0002,2]
[310717414,1704659432630,-684.063715,0.0002,2]
[310717415,1704659432645,-684.063715,0.0002,2]
[310717416,1704659432658,-684.063715,0.0002,2]
[310717417,1704659432673,-684.063715,0.0002,2]
[310717418,1704659432687,-684.063715,0.0002,2]
[310717419,1704659432699,-172.83501432,0.00020143,2]
[310717420,1704659432712,-154.8915759,0.0002024,2]
[310717421,1704659432725,-191.26508098,0.00020241,2]
[310717422,1704659432740,-5946.99696762,0.00020243,2]
[310717423,1704659432755,-176.419647,0.00020793,2]
[310717424,1704659432770,-1820.7363443,0.00021,2]
[310717425,1704659432783,-166.666666,0.00021918,2]
[310717426,1704659432793,-292.44148742,0.00022,4]
[310717427,1704659432804,-178.24808117,0.00022493,2]
[310717428,1704659432816,-14008.17079924,0.00022495,2]
[310717429,1704659432834,-10667.6361852,0.00022495,2]
[310717430,1704659432847,-5262.05814536,0.00022497,2]
[310717431,1704659432860,-166.666666,0.00022559,2]
[310717432,1704659432873,-2091.84772566,0.00023,2]
[310717433,1704659432884,-166.666666,0.000232,2]
[310717434,1704659432895,-166.666666,0.00023841,2]
[310717435,1704659432912,-148.16396552,0.00024,2]
[310717491,1704659438773,-101.29621336,0.00024,2]
[310717494,1704659438784,-166.666666,0.00024482,2]
[310717495,1704659438793,-762.96555308,0.00025,2]
[310717497,1704659438802,-3005.39361446,0.00025,2]
[310717498,1704659438812,-154.82968734,0.00025,4]
[310717499,1704659438823,-1018.6437214,0.00025545,2]
[310717500,1704659438834,-3389.1231387,0.00027,2]
[310717501,1704659438842,-334.26243587,0.00028,2]
[310717502,1704659438853,-304.80766426,0.00028,2]
[310717503,1704659438863,-381.03707548,0.00029648,2]
[310717504,1704659438872,-282.4048077,0.0003,3]